[Event "*** SCC Grand Prix: Titled Tuesday Blitz"]
[Site "Chess.com"]
[Date "2020.06.23"]
[Round "5"]
[White "WelshTiger"]
[Black "Fusikk"]
[Result "0-1"]
[WhiteElo "2365"]
[BlackElo "2545"]
[TimeControl "180+1"]
[EndTime "10:56:23 PDT"]
[Termination "Fusikk won by resignation"]

1. e4 {[%clk 0:03:00.9]} 1... e6 {[%clk 0:02:56.9]} 2. d4 {[%clk 0:03:00.3]}
2... d5 {[%clk 0:02:56.9]} 3. Nd2 {[%clk 0:03:01]} 3... c5 {[%clk 0:02:56.8]} 4.
exd5 {[%clk 0:03:00.4]} 4... Qxd5 {[%clk 0:02:56.2]} 5. dxc5 {[%clk 0:03:00.4]}
5... Qxc5 {[%clk 0:02:55.3]} 6. Ngf3 {[%clk 0:02:56.6]} 6... Nf6 {[%clk
0:02:54.7]} 7. Bd3 {[%clk 0:02:55.6]} 7... Nbd7 {[%clk 0:02:50.4]} 8. Qe2 {[%clk
0:02:54.2]} 8... Be7 {[%clk 0:02:47.2]} 9. O-O {[%clk 0:02:53.8]} 9... O-O
{[%clk 0:02:47]} 10. Ne4 {[%clk 0:02:34.7]} 10... Qc7 {[%clk 0:02:41.6]} 11. Bg5
{[%clk 0:02:28.2]} 11... h6 {[%clk 0:02:36.3]} 12. Bh4 {[%clk 0:02:27.9]} 12...
b6 {[%clk 0:02:31.1]} 13. Nxf6+ {[%clk 0:02:25.3]} 13... Nxf6 {[%clk 0:02:32]}
14. Bxf6 {[%clk 0:02:25.3]} 14... Bxf6 {[%clk 0:02:21.3]} 15. Qe4 {[%clk
0:02:25.1]} 15... Rd8 {[%clk 0:02:20]} 16. Qxa8 {[%clk 0:02:02.4]} 16... Bb7
{[%clk 0:02:19.5]} 17. Qxa7 {[%clk 0:01:58.4]} 17... Ra8 {[%clk 0:02:18.7]} 18.
Qxa8+ {[%clk 0:01:58.3]} 18... Bxa8 {[%clk 0:02:19.6]} 19. Nd2 {[%clk
0:01:45.5]} 19... Bxb2 {[%clk 0:02:17.6]} 20. Rab1 {[%clk 0:01:45.3]} 20... Be5
{[%clk 0:02:12.4]} 21. h3 {[%clk 0:01:42]} 21... Bf4 {[%clk 0:02:05.8]} 22. Nc4
{[%clk 0:01:30.5]} 22... Qc6 {[%clk 0:01:55.1]} 23. f3 {[%clk 0:01:29.4]} 23...
b5 {[%clk 0:01:55.1]} 24. Na5 {[%clk 0:01:24.7]} 24... Qb6+ {[%clk 0:01:53.9]}
25. Kh1 {[%clk 0:01:23.5]} 25... Qxa5 {[%clk 0:01:53.9]} 26. Rxb5 {[%clk
0:01:23.7]} 26... Qxa2 {[%clk 0:01:51.9]} 27. Rfb1 {[%clk 0:01:22.4]} 27... g6
{[%clk 0:01:47.1]} 28. R1b4 {[%clk 0:01:09.1]} 28... Qa1+ {[%clk 0:01:38.2]} 29.
Rb1 {[%clk 0:01:09.2]} 29... Qd4 {[%clk 0:01:30.6]} 30. Rb8+ {[%clk 0:01:04.9]}
30... Bxb8 {[%clk 0:01:29.8]} 31. Rxb8+ {[%clk 0:01:04.5]} 31... Kg7 {[%clk
0:01:28.9]} 32. Rxa8 {[%clk 0:01:05.4]} 32... h5 {[%clk 0:01:26.2]} 33. Rc8
{[%clk 0:01:02.5]} 33... h4 {[%clk 0:01:25.7]} 34. Rc4 {[%clk 0:01:02.6]} 34...
Qf2 {[%clk 0:01:24.6]} 35. Re4 {[%clk 0:00:59.2]} 35... Kf8 {[%clk 0:01:18.7]}
36. Re2 {[%clk 0:00:59.2]} 36... Qc5 {[%clk 0:01:15.9]} 37. Re4 {[%clk 0:00:58]}
37... g5 {[%clk 0:01:15.5]} 38. Rc4 {[%clk 0:00:55.5]} 38... Qa5 {[%clk
0:01:14.9]} 39. Kg1 {[%clk 0:00:42.5]} 39... Ke7 {[%clk 0:01:13.6]} 40. Kf2
{[%clk 0:00:42.7]} 40... Qa7+ {[%clk 0:01:11.4]} 41. Kf1 {[%clk 0:00:41.4]}
41... Kf6 {[%clk 0:01:08.2]} 42. Re4 {[%clk 0:00:39.6]} 42... Ke7 {[%clk
0:01:05.8]} 43. Rc4 {[%clk 0:00:39.8]} 43... Kd6 {[%clk 0:01:04.3]} 44. Re4
{[%clk 0:00:39.8]} 44... f5 {[%clk 0:01:01.3]} 45. Rc4 {[%clk 0:00:38.8]} 45...
Qe3 {[%clk 0:00:47.2]} 46. Rc3 {[%clk 0:00:34.8]} 46... Qc1+ {[%clk 0:00:42.6]}
47. Kf2 {[%clk 0:00:34.1]} 47... Qd2+ {[%clk 0:00:42.3]} 0-1

[Event "*** SCC Grand Prix: Titled Tuesday Blitz"]
[Site "Chess.com"]
[Date "2020.06.23"]
[Round "5"]
[White "Raja3401"]
[Black "MaxVavulin"]
[Result "1-0"]
[WhiteElo "2801"]
[BlackElo "2566"]
[TimeControl "180+1"]
[EndTime "10:56:29 PDT"]
[Termination "Raja3401 won on time"]

1. e4 {[%clk 0:03:00.9]} 1... e5 {[%clk 0:02:58.8]} 2. Nf3 {[%clk 0:02:52.7]}
2... Nc6 {[%clk 0:02:58.9]} 3. Bb5 {[%clk 0:02:49]} 3... a6 {[%clk 0:02:58.5]}
4. Ba4 {[%clk 0:02:48.3]} 4... Nge7 {[%clk 0:02:58.4]} 5. Nc3 {[%clk 0:02:46.8]}
5... g6 {[%clk 0:02:50.5]} 6. d4 {[%clk 0:02:46.8]} 6... exd4 {[%clk 0:02:49.2]}
7. Nd5 {[%clk 0:02:47.1]} 7... Bg7 {[%clk 0:02:42.4]} 8. Bg5 {[%clk 0:02:46.4]}
8... b5 {[%clk 0:02:30.5]} 9. Bb3 {[%clk 0:02:27.9]} 9... h6 {[%clk 0:02:30.1]}
10. Bf6 {[%clk 0:02:27.8]} 10... Bxf6 {[%clk 0:02:23]} 11. Nxf6+ {[%clk
0:02:28.7]} 11... Kf8 {[%clk 0:02:23.7]} 12. Qd2 {[%clk 0:02:21.5]} 12... Kg7
{[%clk 0:02:16.7]} 13. Nxd4 {[%clk 0:02:21.5]} 13... d6 {[%clk 0:01:50.3]} 14.
Qc3 {[%clk 0:02:05]} 14... Ne5 {[%clk 0:01:20.9]} 15. f4 {[%clk 0:02:02.9]}
15... c5 {[%clk 0:01:00.2]} 16. fxe5 {[%clk 0:01:48.5]} 16... cxd4 {[%clk
0:00:59.9]} 17. Qf3 {[%clk 0:01:17.7]} 17... Rf8 {[%clk 0:00:57]} 18. exd6
{[%clk 0:01:17.7]} 18... Nc6 {[%clk 0:00:46]} 19. O-O {[%clk 0:01:17.7]} 19...
Ne5 {[%clk 0:00:37]} 20. Qg3 {[%clk 0:00:44.5]} 20... Qxd6 {[%clk 0:00:32.9]}
21. Bd5 {[%clk 0:00:40.6]} 21... Ra7 {[%clk 0:00:26.4]} 22. Rad1 {[%clk
0:00:30.9]} 22... Re7 {[%clk 0:00:09.1]} 23. Rxd4 {[%clk 0:00:30.8]} 23... Qb6
{[%clk 0:00:07.1]} 24. c3 {[%clk 0:00:30.7]} 24... a5 {[%clk 0:00:05.1]} 25. h3
{[%clk 0:00:28.9]} 25... b4 {[%clk 0:00:04.2]} 26. Kh2 {[%clk 0:00:29]} 26...
bxc3 {[%clk 0:00:04.2]} 27. bxc3 {[%clk 0:00:29.9]} 27... Ba6 {[%clk 0:00:03.5]}
28. Rf2 {[%clk 0:00:28.4]} 28... Qc5 {[%clk 0:00:03.3]} 29. Nh5+ {[%clk
0:00:27.6]} 29... Kh8 {[%clk 0:00:02.9]} 30. Qf4 {[%clk 0:00:24.9]} 30... Kh7
{[%clk 0:00:01.8]} 31. Nf6+ {[%clk 0:00:22.2]} 31... Kg7 {[%clk 0:00:01.8]} 32.
Qh4 {[%clk 0:00:20.6]} 1-0

[Event "*** SCC Grand Prix: Titled Tuesday Blitz"]
[Site "Chess.com"]
[Date "2020.06.23"]
[Round "5"]
[White "doons21"]
[Black "CroissantNeuf"]
[Result "1-0"]
[WhiteElo "2549"]
[BlackElo "2381"]
[TimeControl "180+1"]
[EndTime "10:56:29 PDT"]
[Termination "doons21 won on time"]

1. e4 {[%clk 0:03:00.9]} 1... c6 {[%clk 0:02:59.8]} 2. d3 {[%clk 0:02:55.2]}
2... d5 {[%clk 0:02:59.8]} 3. Nd2 {[%clk 0:02:55.7]} 3... e5 {[%clk 0:02:57.5]}
4. Ngf3 {[%clk 0:02:56.1]} 4... Bd6 {[%clk 0:02:56.6]} 5. g3 {[%clk 0:02:56.5]}
5... Nf6 {[%clk 0:02:55.5]} 6. Bg2 {[%clk 0:02:57.1]} 6... O-O {[%clk
0:02:55.9]} 7. O-O {[%clk 0:02:57.2]} 7... Re8 {[%clk 0:02:55.2]} 8. a4 {[%clk
0:02:56.6]} 8... a5 {[%clk 0:02:54.1]} 9. Re1 {[%clk 0:02:56.4]} 9... Nbd7
{[%clk 0:02:51.8]} 10. Nh4 {[%clk 0:02:55.3]} 10... Nc5 {[%clk 0:02:44.2]} 11.
h3 {[%clk 0:02:53.7]} 11... dxe4 {[%clk 0:02:31.3]} 12. dxe4 {[%clk 0:02:53.1]}
12... b5 {[%clk 0:02:30.7]} 13. axb5 {[%clk 0:02:15.2]} 13... cxb5 {[%clk
0:02:31.6]} 14. Qf3 {[%clk 0:02:15.6]} 14... Be6 {[%clk 0:01:58.7]} 15. Nf5
{[%clk 0:02:01.7]} 15... Bf8 {[%clk 0:01:57.5]} 16. Nf1 {[%clk 0:01:49.4]} 16...
g6 {[%clk 0:01:43.6]} 17. Nh6+ {[%clk 0:01:34.9]} 17... Kg7 {[%clk 0:01:37.6]}
18. Bg5 {[%clk 0:01:33]} 18... Be7 {[%clk 0:01:36.7]} 19. Rad1 {[%clk
0:01:16.4]} 19... Qc7 {[%clk 0:01:24.6]} 20. g4 {[%clk 0:01:05.2]} 20... Nfxe4
{[%clk 0:01:15.2]} 21. Bxe7 {[%clk 0:00:55.3]} 21... Qxe7 {[%clk 0:01:13.9]} 22.
Nf5+ {[%clk 0:00:55.7]} 22... gxf5 {[%clk 0:01:03.6]} 23. gxf5 {[%clk
0:00:56.6]} 23... Bc4 {[%clk 0:00:22]} 24. Qg4+ {[%clk 0:00:50.1]} 24... Qg5
{[%clk 0:00:19.1]} 25. Bxe4 {[%clk 0:00:49.8]} 25... Nxe4 {[%clk 0:00:12.8]} 26.
Rxe4 {[%clk 0:00:50.7]} 26... Qxg4+ {[%clk 0:00:09.6]} 27. Rxg4+ {[%clk
0:00:48]} 27... Kf6 {[%clk 0:00:09.2]} 28. Ne3 {[%clk 0:00:48.9]} 28... Rac8
{[%clk 0:00:08.6]} 29. Rd6+ {[%clk 0:00:46.4]} 29... Ke7 {[%clk 0:00:07.8]} 30.
Rb6 {[%clk 0:00:46.1]} 30... Rg8 {[%clk 0:00:03.2]} 31. Rh6 {[%clk 0:00:23]}
31... Be2 {[%clk 0:00:01.9]} 32. Rg3 {[%clk 0:00:18]} 1-0

[Event "*** SCC Grand Prix: Titled Tuesday Blitz"]
[Site "Chess.com"]
[Date "2020.06.23"]
[Round "5"]
[White "themind1hunter"]
[Black "floplover"]
[Result "0-1"]
[WhiteElo "2417"]
[BlackElo "2232"]
[TimeControl "180+1"]
[EndTime "10:56:30 PDT"]
[Termination "floplover won by resignation"]

1. e4 {[%clk 0:03:00.9]} 1... c6 {[%clk 0:02:59.9]} 2. d4 {[%clk 0:02:59.3]}
2... d5 {[%clk 0:03:00.8]} 3. Nd2 {[%clk 0:02:56.5]} 3... dxe4 {[%clk
0:03:00.6]} 4. Nxe4 {[%clk 0:02:37]} 4... Bf5 {[%clk 0:03:01]} 5. Ng3 {[%clk
0:02:32.6]} 5... Bg6 {[%clk 0:03:00.9]} 6. h4 {[%clk 0:02:30.4]} 6... h6 {[%clk
0:03:01]} 7. Nf3 {[%clk 0:02:27.8]} 7... Nd7 {[%clk 0:03:00.8]} 8. h5 {[%clk
0:02:25.4]} 8... Bh7 {[%clk 0:03:01.2]} 9. Bd3 {[%clk 0:02:26.1]} 9... Bxd3
{[%clk 0:03:01.7]} 10. Qxd3 {[%clk 0:02:27]} 10... e6 {[%clk 0:03:02.1]} 11. Bd2
{[%clk 0:02:26.1]} 11... Ngf6 {[%clk 0:03:01.8]} 12. O-O-O {[%clk 0:02:26.5]}
12... Be7 {[%clk 0:03:02.1]} 13. Kb1 {[%clk 0:02:25.4]} 13... O-O {[%clk
0:03:01.5]} 14. Ne4 {[%clk 0:02:24.9]} 14... Nxe4 {[%clk 0:03:01.7]} 15. Qxe4
{[%clk 0:02:25.8]} 15... Nf6 {[%clk 0:03:02.3]} 16. Qe2 {[%clk 0:02:26.3]} 16...
Qd5 {[%clk 0:03:02.8]} 17. Be3 {[%clk 0:02:26.6]} 17... Bd6 {[%clk 0:02:22.4]}
18. c4 {[%clk 0:02:09.2]} 18... Qe4+ {[%clk 0:02:19.9]} 19. Ka1 {[%clk
0:02:08.7]} 19... Ng4 {[%clk 0:01:41.2]} 20. Nd2 {[%clk 0:02:04]} 20... Qf5
{[%clk 0:01:34.8]} 21. Rh4 {[%clk 0:01:56.6]} 21... Nxe3 {[%clk 0:01:32.9]} 22.
fxe3 {[%clk 0:01:50.9]} 22... c5 {[%clk 0:01:26.1]} 23. Ne4 {[%clk 0:01:43.6]}
23... Rad8 {[%clk 0:00:51.4]} 24. Rf1 {[%clk 0:01:34.2]} 24... Qh7 {[%clk
0:00:49.9]} 25. Qf3 {[%clk 0:01:23.1]} 25... cxd4 {[%clk 0:00:44]} 26. exd4
{[%clk 0:01:16.2]} 26... Be7 {[%clk 0:00:43.9]} 27. Rg4 {[%clk 0:01:07.8]} 27...
Rxd4 {[%clk 0:00:30]} 28. Qe3 {[%clk 0:01:06.5]} 28... Rfd8 {[%clk 0:00:25.8]}
29. Nf2 {[%clk 0:00:29]} 29... Rxg4 {[%clk 0:00:18.3]} 30. Nxg4 {[%clk
0:00:29.9]} 30... Qc2 {[%clk 0:00:18.3]} 31. Qf3 {[%clk 0:00:30.3]} 31... f5
{[%clk 0:00:14.1]} 32. Ne5 {[%clk 0:00:30.3]} 32... Bf6 {[%clk 0:00:12.6]} 0-1

[Event "*** SCC Grand Prix: Titled Tuesday Blitz"]
[Site "Chess.com"]
[Date "2020.06.23"]
[Round "5"]
[White "ruslansezdbekov"]
[Black "Antipov_Mikhail_Al"]
[Result "1-0"]
[WhiteElo "2599"]
[BlackElo "2794"]
[TimeControl "180+1"]
[EndTime "10:56:31 PDT"]
[Termination "ruslansezdbekov won by resignation"]

1. e4 {[%clk 0:03:00.4]} 1... e5 {[%clk 0:02:59.2]} 2. Nf3 {[%clk 0:03:00.4]}
2... Nc6 {[%clk 0:02:58.3]} 3. d4 {[%clk 0:02:59.9]} 3... exd4 {[%clk
0:02:59.2]} 4. Nxd4 {[%clk 0:02:59.8]} 4... Qh4 {[%clk 0:02:59]} 5. Nc3 {[%clk
0:02:55.7]} 5... Bb4 {[%clk 0:02:58.2]} 6. Nb5 {[%clk 0:02:55.7]} 6... Qxe4+
{[%clk 0:02:55.7]} 7. Be3 {[%clk 0:02:54.5]} 7... Kd8 {[%clk 0:02:50]} 8. a3
{[%clk 0:02:54.3]} 8... Bxc3+ {[%clk 0:02:44.8]} 9. Nxc3 {[%clk 0:02:54.2]} 9...
Qg6 {[%clk 0:02:30.6]} 10. Qd2 {[%clk 0:02:48.4]} 10... d6 {[%clk 0:02:30.2]}
11. O-O-O {[%clk 0:02:48.7]} 11... Nge7 {[%clk 0:02:25.9]} 12. Bf4 {[%clk
0:02:46.7]} 12... Bf5 {[%clk 0:02:17.9]} 13. Nb5 {[%clk 0:02:45.4]} 13... a6
{[%clk 0:02:04.3]} 14. Nxc7 {[%clk 0:02:27.9]} 14... Kxc7 {[%clk 0:02:05.2]} 15.
Bxd6+ {[%clk 0:02:27.7]} 15... Kc8 {[%clk 0:02:05.2]} 16. Qe3 {[%clk 0:02:16.3]}
16... Bxc2 {[%clk 0:01:57.8]} 17. Qb6 {[%clk 0:02:16.2]} 17... Kd7 {[%clk
0:01:46.3]} 18. Qxb7+ {[%clk 0:01:52.7]} 18... Ke6 {[%clk 0:01:44.8]} 19. Bc4+
{[%clk 0:01:50.1]} 19... Kf5 {[%clk 0:01:45.4]} 20. Kxc2 {[%clk 0:01:47.5]}
20... Kg5+ {[%clk 0:01:29.3]} 21. Kc1 {[%clk 0:01:47.2]} 21... Qf6 {[%clk
0:01:22.9]} 22. h4+ {[%clk 0:01:34]} 22... Kh6 {[%clk 0:01:20]} 23. g4 {[%clk
0:01:34.3]} 23... Qxf2 {[%clk 0:01:09.7]} 24. Rhf1 {[%clk 0:01:28.7]} 24... Qe3+
{[%clk 0:01:07]} 25. Kb1 {[%clk 0:01:28]} 25... Rab8 {[%clk 0:00:36.2]} 26. Qc7
{[%clk 0:01:26.6]} 26... Qe4+ {[%clk 0:00:17.2]} 27. Bd3 {[%clk 0:01:22]} 27...
Rxb2+ {[%clk 0:00:17.7]} 28. Kxb2 {[%clk 0:01:09.4]} 28... Rb8+ {[%clk
0:00:17.1]} 29. Kc1 {[%clk 0:00:59.8]} 29... Qe3+ {[%clk 0:00:11.4]} 30. Rd2
{[%clk 0:00:58.7]} 30... g5 {[%clk 0:00:07.5]} 31. hxg5+ {[%clk 0:00:57.2]}
31... Kg7 {[%clk 0:00:07.1]} 32. Bxe7 {[%clk 0:00:53]} 32... Nxe7 {[%clk
0:00:04.1]} 33. Qxb8 {[%clk 0:00:51.5]} 33... Qc5+ {[%clk 0:00:03]} 34. Kb1
{[%clk 0:00:49]} 34... Nd5 {[%clk 0:00:02.1]} 1-0

[Event "*** SCC Grand Prix: Titled Tuesday Blitz"]
[Site "Chess.com"]
[Date "2020.06.23"]
[Round "5"]
[White "Evgeny_Ermakov1965"]
[Black "hansen"]
[Result "1/2-1/2"]
[WhiteElo "2666"]
[BlackElo "2984"]
[TimeControl "180+1"]
[EndTime "10:56:32 PDT"]
[Termination "Game drawn by repetition"]

1. d4 {[%clk 0:03:00.9]} 1... Nf6 {[%clk 0:02:59.7]} 2. c4 {[%clk 0:03:00.6]}
2... g6 {[%clk 0:02:50.3]} 3. Nc3 {[%clk 0:03:00.5]} 3... d5 {[%clk 0:02:50.3]}
4. Nf3 {[%clk 0:02:59.6]} 4... Bg7 {[%clk 0:02:43.3]} 5. Bf4 {[%clk 0:02:59.5]}
5... O-O {[%clk 0:02:42.7]} 6. e3 {[%clk 0:02:59.4]} 6... c5 {[%clk 0:02:43]} 7.
h3 {[%clk 0:02:58.7]} 7... Nc6 {[%clk 0:02:36.1]} 8. cxd5 {[%clk 0:02:58.7]}
8... Nxd5 {[%clk 0:02:35]} 9. Bh2 {[%clk 0:02:58.4]} 9... cxd4 {[%clk
0:02:32.2]} 10. exd4 {[%clk 0:02:56.3]} 10... Qa5 {[%clk 0:02:15.6]} 11. Qd2
{[%clk 0:02:52.9]} 11... Rd8 {[%clk 0:02:15.4]} 12. Bc4 {[%clk 0:02:50]} 12...
Nb6 {[%clk 0:02:13.3]} 13. Bb3 {[%clk 0:02:47.2]} 13... Nxd4 {[%clk 0:01:42]}
14. Nxd4 {[%clk 0:02:42.4]} 14... Rxd4 {[%clk 0:01:35.3]} 15. Qe3 {[%clk
0:02:42.2]} 15... e6 {[%clk 0:01:29.4]} 16. O-O {[%clk 0:02:41.7]} 16... Bd7
{[%clk 0:01:28.9]} 17. Rad1 {[%clk 0:02:40.3]} 17... Rxd1 {[%clk 0:01:27]} 18.
Rxd1 {[%clk 0:02:41.2]} 18... Bc6 {[%clk 0:01:26.9]} 19. Bf4 {[%clk 0:02:31.6]}
19... Re8 {[%clk 0:01:19.1]} 20. Bh6 {[%clk 0:02:31]} 20... Qe5 {[%clk 0:01:13]}
21. Qxe5 {[%clk 0:02:27.8]} 21... Bxe5 {[%clk 0:01:12.7]} 22. Be3 {[%clk
0:02:28.7]} 22... Rc8 {[%clk 0:00:56]} 23. g4 {[%clk 0:02:23.3]} 23... Kf8
{[%clk 0:00:44.9]} 24. f4 {[%clk 0:02:21.4]} 24... Bf6 {[%clk 0:00:41.6]} 25.
Kf2 {[%clk 0:02:21.7]} 25... Ke8 {[%clk 0:00:39.1]} 26. g5 {[%clk 0:02:21.9]}
26... Be7 {[%clk 0:00:37.8]} 27. h4 {[%clk 0:02:21.7]} 27... Nd7 {[%clk
0:00:30]} 28. h5 {[%clk 0:02:17.4]} 28... a6 {[%clk 0:00:27.6]} 29. hxg6 {[%clk
0:02:14.1]} 29... hxg6 {[%clk 0:00:27]} 30. Bc2 {[%clk 0:02:12.6]} 30... b5
{[%clk 0:00:25]} 31. Be4 {[%clk 0:02:12.5]} 31... Nc5 {[%clk 0:00:19.9]} 32.
Bxc6+ {[%clk 0:02:06.1]} 32... Rxc6 {[%clk 0:00:20.1]} 33. Kf3 {[%clk 0:02:07]}
33... b4 {[%clk 0:00:19.8]} 34. Ne4 {[%clk 0:02:06.7]} 34... Nxe4 {[%clk
0:00:18.5]} 35. Kxe4 {[%clk 0:02:07.6]} 35... a5 {[%clk 0:00:19.1]} 36. Bd4
{[%clk 0:02:03.8]} 36... Bd6 {[%clk 0:00:16.9]} 37. Rh1 {[%clk 0:02:01.4]} 37...
Rc2 {[%clk 0:00:14.9]} 38. Rh8+ {[%clk 0:01:56.8]} 38... Kd7 {[%clk 0:00:13]}
39. Rh7 {[%clk 0:01:57]} 39... Ke7 {[%clk 0:00:11.9]} 40. Bf6+ {[%clk
0:01:56.6]} 40... Ke8 {[%clk 0:00:12.2]} 41. Rh8+ {[%clk 0:01:55.8]} 41... Kd7
{[%clk 0:00:12.5]} 42. Rh7 {[%clk 0:01:53.3]} 42... Rc4+ {[%clk 0:00:12.5]} 43.
Kd3 {[%clk 0:01:51.8]} 43... Rxf4 {[%clk 0:00:12.5]} 44. Rxf7+ {[%clk
0:01:51.1]} 44... Kc6 {[%clk 0:00:13.2]} 45. Ra7 {[%clk 0:01:50.3]} 45... Kb5
{[%clk 0:00:10.7]} 46. Rb7+ {[%clk 0:01:39.2]} 46... Kc5 {[%clk 0:00:10]} 47.
Ra7 {[%clk 0:01:36]} 47... Kb5 {[%clk 0:00:09.6]} 48. Rb7+ {[%clk 0:01:35.6]}
48... Kc6 {[%clk 0:00:10]} 49. Ra7 {[%clk 0:01:34.4]} 49... Bc5 {[%clk
0:00:07.5]} 50. Rxa5 {[%clk 0:01:31.7]} 50... Rg4 {[%clk 0:00:08]} 51. a4 {[%clk
0:01:26]} 51... bxa3 {[%clk 0:00:08]} 52. bxa3 {[%clk 0:01:26.9]} 52... Rg3+
{[%clk 0:00:08.1]} 53. Ke4 {[%clk 0:01:25.2]} 53... Bxa3 {[%clk 0:00:08.4]} 54.
Ra6+ {[%clk 0:01:17.2]} 54... Kd7 {[%clk 0:00:08.5]} 55. Ra7+ {[%clk 0:01:14.6]}
55... Kc6 {[%clk 0:00:08.6]} 56. Ra6+ {[%clk 0:01:14.4]} 56... Kd7 {[%clk
0:00:09.1]} 57. Ra7+ {[%clk 0:01:14]} 57... Kc6 {[%clk 0:00:09.5]} 58. Ra6+
{[%clk 0:01:13.9]} 1/2-1/2

[Event "*** SCC Grand Prix: Titled Tuesday Blitz"]
[Site "Chess.com"]
[Date "2020.06.23"]
[Round "5"]
[White "zmeeed67"]
[Black "GukeshDommaraju"]
[Result "0-1"]
[WhiteElo "2452"]
[BlackElo "2702"]
[TimeControl "180+1"]
[EndTime "10:56:32 PDT"]
[Termination "GukeshDommaraju won on time"]

1. d4 {[%clk 0:03:00.9]} 1... d5 {[%clk 0:02:57.5]} 2. c4 {[%clk 0:03:01]} 2...
e6 {[%clk 0:02:57.7]} 3. Nc3 {[%clk 0:03:01.3]} 3... Bb4 {[%clk 0:02:54.9]} 4.
a3 {[%clk 0:02:58.8]} 4... Bxc3+ {[%clk 0:02:52.5]} 5. bxc3 {[%clk 0:02:59.7]}
5... Nf6 {[%clk 0:02:52.7]} 6. cxd5 {[%clk 0:02:59.1]} 6... exd5 {[%clk
0:02:52.3]} 7. e3 {[%clk 0:02:58.2]} 7... O-O {[%clk 0:02:52]} 8. Bd3 {[%clk
0:02:58.5]} 8... b6 {[%clk 0:02:51.5]} 9. Ne2 {[%clk 0:02:56.1]} 9... Ba6 {[%clk
0:02:51.5]} 10. O-O {[%clk 0:02:56.2]} 10... c5 {[%clk 0:02:49.2]} 11. Ng3
{[%clk 0:02:54.4]} 11... Bxd3 {[%clk 0:02:47.8]} 12. Qxd3 {[%clk 0:02:55.3]}
12... Nc6 {[%clk 0:02:45.9]} 13. Ra2 {[%clk 0:02:52.1]} 13... Re8 {[%clk
0:02:44.2]} 14. f3 {[%clk 0:02:48.2]} 14... Rc8 {[%clk 0:02:43.5]} 15. Re2
{[%clk 0:02:46.6]} 15... Qd7 {[%clk 0:02:40.4]} 16. Bb2 {[%clk 0:02:33.9]} 16...
Re6 {[%clk 0:02:03.3]} 17. e4 {[%clk 0:02:25.8]} 17... dxe4 {[%clk 0:02:01.7]}
18. fxe4 {[%clk 0:02:26.7]} 18... Ne5 {[%clk 0:02:01.9]} 19. Qb1 {[%clk
0:02:13.3]} 19... Nc4 {[%clk 0:01:58.7]} 20. d5 {[%clk 0:01:58.1]} 20... Re5
{[%clk 0:01:58.2]} 21. Bc1 {[%clk 0:01:54.9]} 21... Rce8 {[%clk 0:01:47.5]} 22.
Qd3 {[%clk 0:01:33.4]} 22... b5 {[%clk 0:01:14.3]} 23. a4 {[%clk 0:01:21.5]}
23... a6 {[%clk 0:01:03]} 24. axb5 {[%clk 0:01:21.5]} 24... axb5 {[%clk
0:01:03.9]} 25. Bf4 {[%clk 0:01:19.2]} 25... R5e6 {[%clk 0:00:58.5]} 26. Qc2
{[%clk 0:00:22.1]} 26... Ra6 {[%clk 0:00:53.4]} 27. Bg5 {[%clk 0:00:16.3]} 27...
Ng4 {[%clk 0:00:53.2]} 28. Nf5 {[%clk 0:00:04.2]} 28... Rg6 {[%clk 0:00:52.9]}
29. Bf4 {[%clk 0:00:03]} 29... Nf6 {[%clk 0:00:52.7]} 30. Rfe1 {[%clk
0:00:01.5]} 30... h6 {[%clk 0:00:43.9]} 31. Bg3 {[%clk 0:00:01.8]} 31... Rg4
{[%clk 0:00:38.1]} 32. Qd3 {[%clk 0:00:02.2]} 32... Ne5 {[%clk 0:00:25.6]} 33.
Qf3 {[%clk 0:00:02.6]} 33... Nxf3+ {[%clk 0:00:25]} 0-1

[Event "*** SCC Grand Prix: Titled Tuesday Blitz"]
[Site "Chess.com"]
[Date "2020.06.23"]
[Round "5"]
[White "EnergeticHay"]
[Black "alenee"]
[Result "0-1"]
[WhiteElo "2200"]
[BlackElo "2395"]
[TimeControl "180+1"]
[EndTime "10:56:33 PDT"]
[Termination "alenee won by resignation"]

1. e4 {[%clk 0:03:00.9]} 1... c5 {[%clk 0:02:59.7]} 2. Nf3 {[%clk 0:03:00.5]}
2... e6 {[%clk 0:03:00.1]} 3. d4 {[%clk 0:03:00.7]} 3... cxd4 {[%clk 0:03:00.7]}
4. Nxd4 {[%clk 0:03:01.6]} 4... Nc6 {[%clk 0:03:00.9]} 5. Nc3 {[%clk 0:02:58.4]}
5... Qc7 {[%clk 0:02:58.3]} 6. Be3 {[%clk 0:02:57.7]} 6... a6 {[%clk 0:02:58.2]}
7. Qf3 {[%clk 0:02:53.3]} 7... Bd6 {[%clk 0:02:57.9]} 8. O-O-O {[%clk
0:02:48.1]} 8... Be5 {[%clk 0:02:57.6]} 9. g3 {[%clk 0:02:46.5]} 9... b5 {[%clk
0:02:57.6]} 10. Qe2 {[%clk 0:02:38.3]} 10... Bb7 {[%clk 0:02:55.9]} 11. f4
{[%clk 0:02:37.5]} 11... Bxd4 {[%clk 0:02:56.2]} 12. Bxd4 {[%clk 0:02:38.4]}
12... Nxd4 {[%clk 0:02:56.3]} 13. Rxd4 {[%clk 0:02:39.3]} 13... Qc5 {[%clk
0:02:56.6]} 14. Qd2 {[%clk 0:02:38.8]} 14... Bc6 {[%clk 0:02:57.1]} 15. a3
{[%clk 0:02:37.3]} 15... a5 {[%clk 0:02:52.4]} 16. Bg2 {[%clk 0:02:13.2]} 16...
b4 {[%clk 0:02:51.1]} 17. Nd5 {[%clk 0:02:10.3]} 17... bxa3 {[%clk 0:02:42.9]}
18. bxa3 {[%clk 0:01:45]} 18... Qxa3+ {[%clk 0:02:02]} 19. Kd1 {[%clk
0:01:44.8]} 19... Rb8 {[%clk 0:01:30.9]} 20. Nc3 {[%clk 0:01:38.2]} 20... Qc5
{[%clk 0:01:23.3]} 21. Ke2 {[%clk 0:01:31.6]} 21... Nf6 {[%clk 0:01:16.7]} 22.
Bf3 {[%clk 0:01:11.2]} 22... e5 {[%clk 0:00:53.5]} 23. Rd6 {[%clk 0:00:51.1]}
23... O-O {[%clk 0:00:48.2]} 24. Rd1 {[%clk 0:00:47.8]} 24... Rb2 {[%clk
0:00:45.8]} 25. Qd3 {[%clk 0:00:35.2]} 25... a4 {[%clk 0:00:40.5]} 26. Ra1
{[%clk 0:00:25.9]} 26... a3 {[%clk 0:00:40.3]} 27. fxe5 {[%clk 0:00:24]} 27...
Qxe5 {[%clk 0:00:37]} 28. Rxa3 {[%clk 0:00:23.2]} 28... Rxc2+ {[%clk 0:00:34.5]}
29. Qxc2 {[%clk 0:00:23.5]} 29... Qxd6 {[%clk 0:00:34.6]} 30. Ra1 {[%clk
0:00:23]} 30... Qd4 {[%clk 0:00:31.4]} 31. Rd1 {[%clk 0:00:21.8]} 31... Qc4+
{[%clk 0:00:30.6]} 32. Kf2 {[%clk 0:00:20.9]} 32... Re8 {[%clk 0:00:28.7]} 33.
Qd3 {[%clk 0:00:19.4]} 33... Qe6 {[%clk 0:00:24.8]} 34. Re1 {[%clk 0:00:18.8]}
34... h6 {[%clk 0:00:23.6]} 35. e5 {[%clk 0:00:18.8]} 35... Ng4+ {[%clk
0:00:22.9]} 36. Bxg4 {[%clk 0:00:18.6]} 36... Qxg4 {[%clk 0:00:22.7]} 37. Qe2
{[%clk 0:00:17.7]} 37... Qf5+ {[%clk 0:00:19.8]} 38. Qf3 {[%clk 0:00:16.8]}
38... Qxf3+ {[%clk 0:00:18.5]} 0-1